bitfinex/quotes_SOLUSD_20230120
["timestamp","ask_amount","ask_price","bid_price","bid_amount"]
[1674238179139,0.96,22.742,22.721,9.80394543]
[1674238179544,168.49,22.741,22.72,24.52]
[1674238179874,17.96,22.74,22.71,24.75]
[1674238180195,168.49,22.739,22.717,9.80394543]
[1674238180381,10.96,22.738,22.71,24.75]
[1674238180589,168.49,22.737,22.71,24.75]
[1674238180802,168.49,22.737,22.7,98.67]
[1674238180803,135.5,22.735,22.7,24.58]
[1674238181030,135.5,22.733,22.706,9.80394543]
[1674238181221,196.46,22.732,22.706,9.80394543]
[1674238181432,195.5,22.732,22.706,9.80394543]
[1674238181643,10.96,22.731,22.706,9.80394543]
[1674238181867,50.0,22.73,22.706,9.80394543]
[1674238182089,10.0,22.728,22.71,24.77]
[1674238182300,33.97,22.727,22.71,24.77]
[1674238182610,27.0,22.726,22.711,9.80394543]
[1674238182818,0.96,22.725,22.711,9.80394543]
[1674238183221,10.0,22.726,22.711,9.80394543]
[1674238183427,10.0,22.728,22.711,9.80394543]
[1674238183851,10.0,22.728,22.712,20.0]
[1674238184286,10.0,22.728,22.713,9.80394543]
[1674238184702,10.0,22.728,22.71,24.77]
[1674238185009,10.0,22.726,22.71,9.80394543]
[1674238185531,0.96,22.725,22.71,9.80394543]
[1674238186076,129.8974,22.726,22.71,9.80394543]
[1674238186077,129.8974,22.726,22.711,10.0]
[1674238186278,129.8974,22.726,22.71,24.77]
[1674238186608,129.8974,22.726,22.712,9.80394543]
[1674238186918,129.8974,22.726,22.713,20.0]
[1674238187314,129.8974,22.726,22.714,9.80394543]
[1674238187945,10.0,22.735,22.714,9.80394543]
[1674238188161,119.5455,22.735,22.715,17.0]
[1674238188603,119.5455,22.735,22.716,9.80394543]
[1674238189973,119.5455,22.735,22.706,10.0]
[1674238190159,119.5455,22.735,22.71,9.80394543]
[1674238190377,119.5455,22.735,22.711,37.0]
[1674238190696,119.5455,22.735,22.712,9.80394543]
[1674238191231,43.0,22.734,22.713,20.0]
[1674238191446,10.0,22.733,22.713,20.0]
[1674238191656,10.0,22.733,22.714,9.80394543]
[1674238192161,0.96,22.729,22.714,9.80394543]
[1674238192374,0.96,22.729,22.692,10.0]
[1674238192375,168.51,22.728,22.7,24.58]
[1674238192592,0.96,22.727,22.701,9.80394543]
[1674238192909,33.01,22.726,22.701,9.80394543]
[1674238193108,10.96,22.725,22.701,9.80394543]
[1674238194053,10.0,22.723,22.701,9.80394543]
[1674238194261,33.02,22.722,22.701,9.80394543]
[1674238194474,10.96,22.721,22.701,9.80394543]
[1674238194789,10.0,22.731,22.702,20.0]
[1674238195000,10.0,22.731,22.704,10.0]
[1674238195211,10.0,22.731,22.705,20.0]
[1674238195406,10.0,22.731,22.705,64.4520951]
[1674238195620,10.0,22.731,22.706,19.80394543]
[1674238195831,10.0,22.731,22.707,25.08145]
[1674238196040,10.0,22.731,22.708,16.04123]
[1674238196276,10.0,22.731,22.709,37.0]
[1674238196465,10.0,22.731,22.71,10.0]
[1674238196673,10.0,22.731,22.711,37.0]
[1674238197092,10.0,22.736,22.712,0.96]
[1674238197302,10.0,22.736,22.712,10.76394543]
[1674238197534,10.0,22.736,22.72,24.7]
[1674238197745,10.0,22.738,22.73,24.77]
[1674238198264,10.0,22.738,22.731,9.80394543]
[1674238198681,10.0,22.738,22.721,20.0]
[1674238198898,10.0,22.738,22.728,9.80394543]
[1674238201658,32.99,22.737,22.71,24.77]
[1674238201851,141.2752,22.737,22.71,24.77]
[1674238202052,10.0,22.736,22.71,24.77]
[1674238202259,33.0,22.735,22.72,24.77]
[1674238202469,43.0,22.736,22.72,24.77]
[1674238202683,0.96,22.734,22.72,24.77]
[1674238202892,0.96,22.735,22.703,10.0]
[1674238203124,33.0,22.734,22.71,24.7]
[1674238203531,10.96,22.733,22.71,33.48905906]
[1674238203850,10.0,22.731,22.71,33.48905906]
[1674238204076,0.96,22.73,22.71,33.48905906]
[1674238204385,0.96,22.73,22.711,20.0]
[1674238204596,33.01,22.729,22.711,20.0]
[1674238204803,10.96,22.728,22.711,20.0]
[1674238205625,43.97,22.728,22.711,20.0]
[1674238205835,10.0,22.726,22.711,20.0]
[1674238206063,0.96,22.725,22.711,20.0]
[1674238207202,10.0,22.726,22.711,20.0]
[1674238207936,10.0,22.726,22.702,39.81731894]
[1674238208166,152.4114,22.726,22.702,39.81731894]
[1674238208366,152.4114,22.726,22.7,33.79623666]
[1674238208570,152.4114,22.726,22.703,34.64814967]
[1674238208904,0.96,22.725,22.71,24.77]
[1674238209114,10.0,22.724,22.702,9.21623666]
[1674238209304,10.0,22.724,22.703,20.0]
[1674238209519,0.96,22.723,22.703,20.0]
[1674238210496,0.96,22.723,22.701,20.0]
[1674238210904,0.96,22.723,22.702,9.21623666]
[1674238211117,0.96,22.723,22.703,20.0]
[1674238211431,0.96,22.723,22.71,24.7]
[1674238212791,0.96,22.723,22.705,9.21623666]
[1674238213003,17.96,22.723,22.705,9.21623666]
[1674238213212,0.96,22.723,22.705,9.21623666]
[1674238214175,10.0,22.724,22.706,20.0]
[1674238214377,10.0,22.724,22.71,24.77]
[1674238214803,10.0,22.724,22.711,29.21623666]
[1674238215221,10.0,22.724,22.712,9.21623666]
[1674238215552,10.0,22.724,22.713,20.0]
[1674238215941,10.0,22.724,22.714,9.21623666]
[1674238216571,0.96,22.723,22.714,9.21623666]
[1674238216797,0.96,22.723,22.71,24.77]
[1674238216798,0.96,22.723,22.7,24.58]
[1674238217735,10.0,22.722,22.7,24.58]
[1674238218169,127.6947,22.721,22.7,24.58]
[1674238218490,110.6947,22.721,22.7,24.58]
[1674238218698,10.0,22.72,22.701,20.0]
[1674238218907,0.96,22.719,22.701,20.0]
[1674238219408,10.0,22.718,22.701,20.0]
[1674238219621,0.96,22.717,22.701,20.0]
[1674238219852,17.96,22.717,22.691,20.0]
[1674238220167,17.96,22.717,22.69,24.77]
[1674238220168,10.0,22.716,22.69,24.77]
[1674238220364,153.46,22.715,22.69,24.77]
[1674238220774,10.0,22.714,22.69,24.77]
[1674238221009,50.99,22.713,22.69,24.77]
[1674238221194,135.5,22.712,22.68,24.54]
[1674238221409,135.5,22.71,22.68,24.54]
[1674238221616,10.0,22.708,22.68,24.54]
[1674238221838,168.54,22.707,22.67,24.75]
[1674238222057,17.96,22.706,22.67,24.75]
[1674238222246,135.5,22.704,22.67,24.75]
[1674238222465,50.04,22.703,22.671,8.66425057]
[1674238222673,10.0,22.702,22.671,8.66425057]
[1674238223002,17.96,22.701,22.671,8.66425057]
[1674238223417,10.0,22.7,22.67,24.75]
[1674238223638,10.0,22.698,22.671,10.0]
[1674238223826,0.96,22.697,22.671,10.0]
[1674238224041,0.96,22.697,22.672,8.66425057]
[1674238224672,0.96,22.697,22.673,20.0]
[1674238224884,0.96,22.697,22.671,20.0]
[1674238225429,17.96,22.697,22.67,24.75]
[1674238225640,10.0,22.694,22.666,31.649483]
[1674238225833,286.6704,22.693,22.66,24.9]
[1674238226042,17.96,22.692,22.661,48.97798414]
[1674238226268,168.56,22.691,22.66,24.9]
[1674238226462,17.96,22.69,22.66,24.9]
[1674238226667,43.06,22.689,22.661,10.0]
[1674238226884,43.06,22.689,22.67,24.75]
[1674238226885,33.06,22.689,22.67,24.75]
[1674238227103,151.1704,22.693,22.67,24.75]
[1674238227518,10.0,22.692,22.671,20.0]
[1674238227723,33.06,22.691,22.671,20.0]
[1674238228149,33.06,22.691,22.665,8.66425057]
[1674238228365,10.96,22.69,22.666,20.0]
[1674238228566,50.06,22.689,22.666,20.0]
[1674238228779,136.46,22.688,22.66,24.9]
[1674238228983,185.57,22.687,22.66,24.9]
[1674238229299,185.57,22.687,22.639,7.22439413]
[1674238229300,0.96,22.686,22.654,31.649483]
[1674238229516,33.07,22.685,22.654,31.649483]
[1674238229736,17.0,22.684,22.654,31.649483]
[1674238229928,34.03,22.683,22.66,24.58]
[1674238230683,10.0,22.681,22.661,20.0]
[1674238230884,34.04,22.68,22.661,20.0]
[1674238231103,10.0,22.681,22.661,20.0]
[1674238231308,10.0,22.681,22.661,28.66425057]
[1674238231629,10.0,22.681,22.662,17.0]
[1674238231839,10.0,22.681,22.663,20.0]
[1674238232371,0.96,22.68,22.663,20.0]
[1674238232684,10.0,22.679,22.661,20.0]
[1674238233109,0.96,22.678,22.661,20.0]
[1674238233822,10.0,22.679,22.661,20.0]
[1674238234042,10.0,22.679,22.66,24.58]
[1674238234262,17.0,22.678,22.655,8.66425057]
[1674238234457,43.08,22.677,22.652,76.11684391]
[1674238234874,43.08,22.677,22.652,39.41952497]
[1674238235095,0.96,22.676,22.652,71.06900797]
[1674238235289,0.96,22.676,22.653,39.41952497]
[1674238235715,0.96,22.676,22.654,20.0]
[1674238235931,10.0,22.674,22.654,20.0]
[1674238236246,10.0,22.674,22.652,31.649483]
[1674238236247,0.96,22.673,22.653,59.41952497]
[1674238236573,0.96,22.673,22.653,39.41952497]
[1674238237410,0.96,22.673,22.65,24.58]
[1674238237720,10.0,22.674,22.66,24.77]
[1674238237923,10.0,22.674,22.661,20.0]
[1674238238558,10.0,22.674,22.662,17.0]
[1674238238757,10.0,22.674,22.663,20.0]
[1674238239202,10.0,22.674,22.661,20.0]
[1674238239807,10.0,22.674,22.662,16.5]
[1674238240019,10.0,22.674,22.663,20.0]
[1674238240662,10.0,22.674,22.661,20.0]
[1674238240881,108.7362,22.675,22.661,20.0]
[1674238241089,108.7362,22.675,22.664,8.66425057]
[1674238241488,108.7362,22.675,22.661,20.0]
[1674238241699,108.7362,22.675,22.659,8.66425057]
[1674238242030,108.7362,22.675,22.653,36.69731894]
[1674238242237,10.0,22.674,22.653,8.66425057]
[1674238242450,108.7362,22.675,22.654,10.0]
[1674238242651,108.7362,22.675,22.66,24.77]
[1674238243068,10.0,22.682,22.67,24.77]
[1674238243296,33.06,22.689,22.671,20.0]
[1674238243297,116.464,22.689,22.671,20.0]
[1674238243506,10.0,22.688,22.671,20.0]
[1674238243714,10.0,22.688,22.664,20.0]
[1674238243914,10.0,22.688,22.671,8.66425057]
[1674238244120,10.0,22.688,22.672,17.0]
[1674238244334,10.0,22.688,22.673,20.0]
[1674238244558,10.0,22.688,22.674,17.0]
[1674238244750,10.0,22.688,22.675,20.0]
[1674238245811,10.0,22.688,22.666,10.0]
[1674238246018,17.96,22.687,22.667,20.0]
[1674238246226,10.0,22.686,22.667,20.0]
[1674238246443,0.96,22.685,22.667,20.0]
[1674238246658,0.96,22.685,22.665,20.0]
[1674238247082,10.0,22.686,22.665,20.0]
[1674238247289,10.0,22.686,22.67,24.58]
[1674238247502,10.0,22.686,22.671,20.0]
[1674238248146,10.0,22.686,22.661,10.0]
[1674238248340,0.96,22.685,22.662,20.0]
[1674238248554,0.96,22.685,22.663,10.0]
[1674238248758,0.96,22.685,22.664,20.0]
[1674238248978,10.0,22.684,22.664,8.66425057]
[1674238249187,17.0,22.683,22.66,24.77]
[1674238249401,10.96,22.682,22.66,24.77]
[1674238249711,10.96,22.682,22.661,8.66425057]
[1674238249922,114.9218,22.681,22.661,8.66425057]
[1674238250136,0.96,22.68,22.661,8.66425057]
[1674238250347,10.96,22.68,22.661,8.66425057]
[1674238250675,10.96,22.68,22.662,37.0]
[1674238250887,10.96,22.68,22.661,8.66425057]
[1674238251075,10.0,22.678,22.661,8.66425057]
[1674238251284,0.96,22.677,22.661,8.66425057]
[1674238252021,0.96,22.677,22.66,24.77]
[1674238252757,0.96,22.677,22.661,20.0]
[1674238252995,0.96,22.677,22.66,20.0]
[1674238253484,17.96,22.677,22.66,20.0]
[1674238253699,17.96,22.677,22.653,72.31886994]
[1674238253908,17.96,22.677,22.654,20.0]
[1674238253909,135.5,22.676,22.654,20.0]
[1674238254117,10.0,22.674,22.65,24.7]
[1674238254340,17.96,22.673,22.65,24.7]
[1674238254558,10.0,22.672,22.652,8.66425057]
[1674238254776,0.96,22.671,22.652,8.66425057]
[1674238254982,10.0,22.67,22.652,8.66425057]
[1674238255182,0.96,22.669,22.652,8.66425057]
[1674238255393,17.96,22.669,22.65,24.7]
[1674238255597,120.6704,22.669,22.651,8.66425057]
[1674238255811,10.0,22.668,22.651,8.66425057]
[1674238256008,0.96,22.667,22.65,24.7]
[1674238256224,0.96,22.667,22.651,8.66425057]
[1674238256442,0.96,22.667,22.65,24.7]
[1674238256651,34.06,22.667,22.646,8.66425057]
[1674238256864,17.96,22.667,22.646,8.66425057]
[1674238257279,10.0,22.666,22.64,24.67]
[1674238257495,10.0,22.665,22.64,24.67]
[1674238257819,61.06,22.665,22.641,8.66425057]
[1674238259490,43.1,22.665,22.641,8.66425057]
[1674238259709,10.0,22.665,22.642,68.649483]
[1674238259919,10.0,22.667,22.65,24.77]
[1674238260318,10.0,22.667,22.643,17.32850114]
[1674238260551,10.0,22.667,22.644,20.0]
[1674238260763,33.1,22.666,22.644,20.0]
[1674238260973,10.0,22.665,22.644,20.0]
[1674238261160,20.0,22.664,22.63,24.77]
[1674238261374,135.5,22.662,22.635,8.66425057]
[1674238261689,51.06,22.661,22.635,8.66425057]
[1674238261903,186.56,22.661,22.635,8.66425057]
[1674238262113,186.56,22.661,22.63,24.77]
[1674238262446,10.0,22.66,22.639,8.66425057]
[1674238262663,10.0,22.658,22.639,8.66425057]
[1674238262973,33.11,22.657,22.639,8.66425057]
[1674238263192,10.0,22.655,22.63,24.77]
[1674238263492,10.0,22.655,22.635,8.66425057]
[1674238263713,17.96,22.654,22.635,8.66425057]
[1674238263898,10.0,22.653,22.635,8.66425057]
[1674238264106,17.96,22.652,22.63,24.77]
[1674238264318,10.0,22.651,22.632,8.66425057]
[1674238264533,10.0,22.649,22.632,8.66425057]
[1674238264750,0.96,22.648,22.632,8.66425057]
[1674238265075,0.96,22.648,22.63,24.77]
[1674238265382,0.96,22.648,22.631,8.66425057]
[1674238267792,0.96,22.648,22.63,24.77]
[1674238268540,10.0,22.649,22.63,24.77]
[1674238268954,10.0,22.649,22.62,25.0]
[1674238269170,10.0,22.647,22.62,25.0]
[1674238269695,135.5,22.645,22.62,25.0]
[1674238269892,0.96,22.644,22.62,25.0]
[1674238270108,10.0,22.644,22.62,25.0]
[1674238270424,17.96,22.643,22.62,25.0]
[1674238271066,10.0,22.642,22.62,25.0]
[1674238271386,17.0,22.641,22.62,25.0]
[1674238271696,17.96,22.641,22.62,25.0]
[1674238271923,10.0,22.64,22.62,25.0]
[1674238272133,0.96,22.639,22.62,25.0]
[1674238272317,10.0,22.64,22.62,25.0]
[1674238272525,10.0,22.64,22.621,20.0]
[1674238273166,119.6762,22.646,22.63,24.75]
[1674238273582,119.6762,22.646,22.631,20.0]
[1674238273792,119.6762,22.646,22.631,28.66425057]
[1674238274019,10.0,22.654,22.632,17.0]
[1674238274332,117.1842,22.652,22.633,40.01889337]
[1674238274542,117.1842,22.652,22.634,17.0]
[1674238274757,117.1842,22.652,22.635,20.0]
[1674238275078,117.1842,22.652,22.635,30.01889337]
[1674238275293,117.1842,22.652,22.636,10.01889337]
[1674238275598,0.96,22.648,22.635,20.0]
[1674238275917,0.96,22.648,22.631,20.0]
[1674238276117,117.1842,22.652,22.631,20.0]
[1674238276644,117.1842,22.652,22.631,37.669573]
[1674238276857,10.0,22.649,22.632,10.01889337]
[1674238277052,10.0,22.649,22.633,17.0]
[1674238277262,10.0,22.649,22.634,20.0]
[1674238277597,10.0,22.649,22.635,17.0]
[1674238277796,10.0,22.649,22.636,20.0]
[1674238278441,10.0,22.649,22.637,17.0]
[1674238279067,10.0,22.649,22.633,10.0]
[1674238279384,10.0,22.649,22.634,37.0]
[1674238279587,10.0,22.654,22.635,10.0]
[1674238279805,113.9631,22.657,22.636,37.0]
[1674238279989,10.0,22.658,22.637,10.96]
[1674238280205,10.0,22.658,22.65,24.54]
[1674238280412,113.9631,22.664,22.65,24.54]
[1674238280632,17.669572,22.659,22.651,10.01889337]
[1674238282425,17.669572,22.659,22.64,99.08]
[1674238282426,17.669572,22.659,22.64,24.52]
[1674238282619,17.0,22.658,22.641,20.0]
[1674238282824,0.96,22.657,22.641,20.0]
[1674238283034,10.96,22.658,22.642,10.01889337]
[1674238283249,10.96,22.658,22.643,20.0]
[1674238283676,10.96,22.658,22.644,10.01889337]
[1674238284102,10.96,22.658,22.645,20.0]
[1674238284318,10.96,22.658,22.631,17.669573]
[1674238284516,50.11,22.657,22.631,17.669573]
[1674238284725,0.96,22.656,22.637,10.01889337]
[1674238284951,10.0,22.654,22.631,17.669573]
[1674238285166,169.8742,22.653,22.632,10.01889337]
[1674238285686,152.8742,22.653,22.633,20.0]
[1674238285902,10.0,22.652,22.633,20.0]
[1674238286088,10.0,22.652,22.634,37.03778674]
[1674238286301,10.0,22.652,22.635,20.0]
[1674238286623,10.0,22.652,22.636,17.0]
[1674238286842,10.0,22.652,22.637,20.0]
[1674238287477,0.96,22.651,22.636,20.0]
[1674238287692,0.96,22.651,22.634,10.01889337]
[1674238287878,0.96,22.651,22.638,10.01889337]
[1674238288308,10.0,22.652,22.64,24.77]
[1674238288639,10.0,22.652,22.641,20.0]
[1674238288824,10.0,22.652,22.641,30.01889337]
[1674238289261,10.0,22.652,22.642,10.01889337]
[1674238289580,10.0,22.652,22.643,20.0]
[1674238289773,10.0,22.654,22.643,20.0]
[1674238290105,10.0,22.654,22.644,37.03778674]
[1674238290425,10.0,22.654,22.645,20.0]
[1674238290633,10.0,22.654,22.645,30.01889337]
[1674238291043,10.0,22.654,22.645,20.0]
[1674238291255,10.0,22.654,22.643,10.01889337]
[1674238291458,10.0,22.654,22.636,29.12298123]
[1674238291793,0.96,22.653,22.638,10.01889337]
[1674238292215,17.96,22.653,22.63,24.7]
[1674238292522,10.0,22.651,22.635,10.01889337]
[1674238292737,17.0,22.65,22.63,24.7]
[1674238292926,10.0,22.649,22.632,10.01889337]
[1674238293141,0.96,22.648,22.632,10.01889337]
[1674238293689,10.0,22.647,22.633,20.0]
[1674238293872,0.96,22.646,22.633,20.0]
[1674238294314,0.96,22.646,22.634,10.01889337]
[1674238294831,10.0,22.647,22.635,20.0]
[1674238295030,10.0,22.65,22.635,20.0]
[1674238295235,10.0,22.65,22.636,10.01889337]
[1674238295671,10.0,22.65,22.637,20.0]
[1674238296294,17.96,22.649,22.62,25.0]
[1674238296496,33.12,22.648,22.62,25.0]
[1674238296710,17.0,22.647,22.624,10.01889337]
[1674238296921,10.96,22.646,22.624,10.01889337]
[1674238297137,17.0,22.645,22.624,10.01889337]
[1674238297354,10.0,22.644,22.624,10.01889337]
[1674238297580,0.96,22.643,22.624,27.69444337]
[1674238298098,0.96,22.643,22.624,17.67555]
[1674238299135,0.96,22.643,22.625,17.0]
[1674238299557,0.96,22.643,22.626,10.01889337]
[1674238299770,0.96,22.643,22.627,37.0]
[1674238300086,0.96,22.643,22.628,10.01889337]
[1674238300502,0.96,22.643,22.629,17.0]
[1674238300825,10.0,22.644,22.63,10.01889337]
[1674238301342,10.0,22.644,22.627,20.0]
[1674238301555,10.0,22.644,22.628,10.01889337]
[1674238301958,0.96,22.643,22.628,10.01889337]
[1674238302165,0.96,22.643,22.625,20.0]
[1674238302393,17.96,22.643,22.625,20.0]
[1674238302606,10.0,22.642,22.625,20.0]
[1674238302798,17.96,22.641,22.625,20.0]
[1674238303009,133.1449,22.641,22.626,10.01889337]
[1674238303225,116.1449,22.641,22.627,20.0]
[1674238303536,10.0,22.64,22.628,10.01889337]
[1674238303747,0.96,22.639,22.628,10.01889337]
[1674238304588,115.1849,22.641,22.63,26.39]
[1674238304921,115.1849,22.641,22.631,27.01889337]
[1674238305355,10.0,22.64,22.631,27.01889337]
[1674238306281,0.96,22.639,22.631,10.01889337]
[1674238307233,0.96,22.639,22.625,10.01889337]
[1674238307845,17.96,22.639,22.625,10.01889337]
[1674238308054,10.0,22.638,22.625,5.01889337]
[1674238308270,0.96,22.637,22.625,5.01889337]
[1674238309019,115.1849,22.641,22.625,5.01889337]
[1674238309633,115.1849,22.641,22.626,17.0]
[1674238310068,115.1849,22.641,22.63,26.57]
[1674238310471,115.1849,22.641,22.631,10.01889337]
[1674238310684,115.1849,22.641,22.631,27.01889337]
[1674238310997,10.0,22.64,22.631,10.01889337]
[1674238311624,10.0,22.64,22.627,20.0]
[1674238311834,10.0,22.64,22.627,10.01889337]
[1674238312043,0.96,22.639,22.628,30.01889337]
[1674238312472,10.0,22.64,22.629,10.01889337]
[1674238312992,108.9593,22.649,22.63,27.29]
[1674238313330,108.9593,22.649,22.631,46.72040084]
[1674238313644,108.9593,22.649,22.632,20.68040084]
[1674238313953,10.0,22.652,22.64,26.57]
[1674238314161,120.8051,22.657,22.641,20.0]
[1674238314353,10.0,22.657,22.641,46.72040084]
[1674238314568,10.0,22.665,22.642,57.13009975]
[1674238314777,110.8051,22.662,22.643,37.0]
[1674238315089,110.8051,22.662,22.643,142.54509726]
[1674238315314,110.8051,22.662,22.644,9.72040084]
[1674238315523,110.8051,22.662,22.645,37.0]
[1674238315732,110.8051,22.662,22.645,84.40969891]
[1674238315945,110.8051,22.662,22.646,9.72040084]
[1674238316141,110.8051,22.662,22.647,37.0]
[1674238316573,110.8051,22.662,22.648,9.72040084]
[1674238316790,110.8051,22.662,22.649,20.0]
[1674238316983,0.96,22.658,22.649,20.0]
[1674238317203,0.96,22.658,22.649,29.72040084]
[1674238317615,10.0,22.66,22.65,17.0]
[1674238317822,10.0,22.66,22.649,29.72040084]
[1674238318032,10.0,22.66,22.649,20.0]
[1674238318248,10.0,22.66,22.647,9.72040084]
[1674238318465,10.0,22.66,22.648,20.0]
[1674238318890,10.0,22.66,22.649,17.0]
[1674238319304,10.0,22.66,22.65,29.72040084]
[1674238320152,0.96,22.658,22.65,20.0]
[1674238320557,10.0,22.66,22.649,20.0]
[1674238321101,0.96,22.658,22.649,20.0]
[1674238321508,10.0,22.66,22.65,17.0]
[1674238322048,10.0,22.66,22.65,26.72040084]
[1674238322450,0.96,22.658,22.65,9.72040084]
[1674238322654,0.96,22.658,22.649,20.0]
[1674238322872,0.96,22.658,22.641,47.40969891]
[1674238323088,0.96,22.658,22.64,26.57]
[1674238323296,33.11,22.657,22.636,9.72040084]
[1674238323509,10.0,22.655,22.636,9.72040084]
[1674238323719,43.11,22.655,22.636,9.72040084]
[1674238324049,0.96,22.654,22.636,9.72040084]
[1674238325201,10.0,22.655,22.636,9.72040084]
[1674238326134,10.0,22.655,22.632,10.0]
[1674238326352,10.0,22.655,22.64,26.33]
[1674238326897,128.4004,22.66,22.641,9.13949018]
[1674238327129,128.4004,22.66,22.642,17.96]
[1674238327311,128.4004,22.66,22.642,37.96]
[1674238327511,128.4004,22.66,22.643,19.13949018]
[1674238327726,128.4004,22.66,22.644,37.0]
[1674238328034,128.4004,22.66,22.645,9.13949018]
[1674238328364,128.4004,22.66,22.646,37.0]
[1674238328771,128.4004,22.66,22.647,9.13949018]
[1674238328772,0.96,22.659,22.647,9.13949018]
[1674238329202,0.96,22.659,22.648,20.0]
[1674238329613,0.96,22.659,22.648,29.13949018]
[1674238330039,43.1,22.665,22.648,29.13949018]
[1674238330040,26.6,22.7,22.659,1.92]
[1674238330256,119.6348,22.689,22.66,106.4]
[1674238330488,10.0,22.688,22.67,26.33]
[1674238330668,10.0,22.688,22.671,17.0]
[1674238330882,10.0,22.688,22.671,26.13949018]
[1674238331295,10.0,22.688,22.672,20.0]
[1674238332048,10.0,22.688,22.673,17.0]
[1674238332252,119.6348,22.689,22.68,26.57]
[1674238332445,109.5735,22.693,22.681,17.0]
[1674238332661,109.3701,22.697,22.682,20.0]
[1674238332871,109.3701,22.697,22.683,17.0]
[1674238333099,10.0,22.703,22.69,26.53]
[1674238333301,10.0,22.703,22.691,37.0]
[1674238333496,10.0,22.703,22.691,20.0]
[1674238333709,10.0,22.703,22.691,29.13949018]
[1674238333918,10.0,22.703,22.692,17.0]
[1674238334142,10.0,22.703,22.693,20.0]
[1674238334349,10.0,22.712,22.694,17.0]
[1674238334763,10.0,22.712,22.695,20.0]
[1674238335091,10.0,22.712,22.696,17.0]
[1674238335306,10.0,22.712,22.697,20.0]
[1674238335492,10.0,22.712,22.697,29.13949018]
[1674238335702,10.0,22.712,22.697,20.0]
[1674238336137,10.0,22.712,22.698,26.13949018]
[1674238336340,11.103967,22.7,22.699,20.0]
[1674238336550,11.103967,22.7,22.699,46.13949018]
[1674238337095,11.103967,22.7,22.699,47.09949018]
[1674238337490,11.103967,22.7,22.699,57.09949018]
[1674238337701,11.103967,22.7,22.699,93.2609654]
[1674238337909,11.103967,22.7,22.699,20.0]
[1674238338244,11.103967,22.7,22.69,26.79]
[1674238338454,11.103967,22.7,22.691,9.13949018]
[1674238339064,11.103967,22.7,22.69,26.79]
[1674238339498,11.103967,22.7,22.691,17.0]
[1674238339801,11.103967,22.7,22.69,26.79]
[1674238340007,0.96,22.699,22.691,20.0]
[1674238340219,0.96,22.699,22.69,26.79]